bitfinex/quotes_ETHUSD_20251215
["timestamp","ask_amount","ask_price","bid_price","bid_amount"]
[1765784642410,0.002,3126.6,3126.5,13.34182946]
[1765784642615,0.002,3126.6,3126.5,8.91981496]
[1765784642934,0.002,3126.6,3126.5,14.61265493]
[1765784644514,0.002,3126.6,3126.5,15.11765493]
[1765784647425,0.002,3126.7,3126.6,0.58047529]
[1765784647630,0.002,3126.7,3126.6,1.17127529]
[1765784648005,0.002,3126.7,3126.6,1.64637529]
[1765784648207,0.002,3126.7,3126.6,3.51269223]
[1765784649334,0.002,3126.7,3126.6,6.71105466]
[1765784652727,0.002,3127.1,3126.6,13.10777952]
[1765784652935,0.002,3127.1,3127.0,5.29788979]
[1765784653132,0.002,3127.1,3127.0,0.87587529]
[1765784653346,0.002,3127.1,3127.0,8.79124309]
[1765784653537,0.002,3127.1,3127.0,9.74228385]
[1765784656913,0.4795,3127.1,3126.9,4.4220145]
[1765784657730,0.4795,3127.1,3126.9,7.62006649]
[1765784657927,0.9546,3127.1,3126.9,7.62006649]
[1765784658233,0.4795,3127.1,3127.0,3.1979533]
[1765784658741,0.002,3127.1,3127.0,3.4933533]
[1765784658917,0.002,3127.1,3127.0,3.52533283]
[1765784659117,0.002,3127.1,3127.0,4.63743779]
[1765784660722,0.002,3127.1,3127.0,6.01831308]
[1765784663262,0.002,3127.1,3127.0,10.14492758]
[1765784663552,0.002,3127.1,3127.0,10.44032758]
[1765784665056,0.002,3127.1,3127.0,11.4006856]
[1765784671741,0.002,3127.1,3127.0,11.1052856]
[1765784671943,0.002,3127.1,3127.0,11.4006856]
[1765784673344,0.002,3127.1,3127.0,11.1052856]
[1765784675575,0.002,3127.1,3127.0,11.1006408]
[1765784677673,0.002,3127.1,3127.0,11.3960408]
[1765784679678,0.002,3127.1,3127.0,11.1006408]
[1765784680178,0.9383,3127.1,3126.6,1.86731694]
[1765784680478,0.4654,3127.1,3126.8,7.615457]
[1765784680677,0.4634,3127.0,3126.8,7.615457]
[1765784680862,0.6572,3126.9,3126.8,7.615457]
[1765784681069,0.6572,3126.9,3126.8,8.19593229]
[1765784681378,1.1206,3126.9,3126.8,8.19593229]
[1765784682675,1.1206,3126.9,3126.8,3.77856259]
[1765784682880,1.1206,3126.9,3126.8,0.58047529]
[1765784683383,1.1206,3126.9,3126.8,3.77863315]
[1765784685796,1.1206,3126.9,3126.8,0.58047529]
[1765784686883,1.1206,3126.9,3126.8,3.77863315]
[1765784687194,1.1206,3126.9,3126.6,0.001]
[1765784687400,0.4729,3126.7,3126.6,0.001]
[1765784687803,0.9363,3126.7,3126.6,0.001]
[1765784692689,0.9363,3126.7,3126.6,4.4183697]
[1765784700903,0.1843,3126.9,3126.6,4.7137697]
[1765784701110,0.6654,3126.9,3126.6,4.7137697]
[1765784701277,0.6654,3126.9,3126.6,4.4183697]
[1765784701477,0.4743,3126.7,3126.6,4.4183697]
[1765784702611,0.4743,3126.7,3126.6,0.001]
[1765784703624,0.4811,3126.8,3126.6,3.19936243]
[1765784703790,0.002,3126.7,3126.6,3.19936243]
[1765784704117,0.002,3126.7,3126.6,4.28099065]
[1765784704287,0.002,3126.7,3126.6,4.57639065]
[1765784704492,0.002,3126.7,3126.6,4.87179065]
[1765784707092,0.002,3126.7,3126.6,5.37679065]
[1765784708523,0.002,3126.7,3126.6,9.79416035]
[1765784708808,0.002,3126.7,3126.6,10.37463564]
[1765784709105,0.002,3126.7,3126.6,10.85573564]
[1765784709706,0.002,3126.7,3126.6,6.43836594]
[1765784711785,0.002,3126.7,3126.6,10.85573564]
[1765784713008,0.002,3126.7,3126.6,6.14296594]
[1765784714107,0.4763,3126.7,3126.6,5.84756594]
[1765784714617,0.002,3126.7,3126.6,5.84756594]
[1765784714910,0.002,3126.7,3126.6,6.14296594]
[1765784716407,0.002,3126.7,3126.6,10.56033564]
[1765784717084,0.002,3126.7,3126.6,6.14296594]
[1765784717285,0.002,3126.7,3126.6,10.07923564]
[1765784717614,0.002,3126.7,3126.6,5.66186594]
[1765784719619,0.002,3126.7,3126.6,5.15686594]
[1765784724117,0.4763,3126.7,3126.6,4.86146594]
[1765784724417,0.9574,3126.7,3126.6,4.86146594]
[1765784724715,0.4763,3126.7,3126.6,4.86146594]
[1765784725215,0.002,3126.7,3126.6,4.86146594]
[1765784725392,0.002,3126.7,3126.6,9.57423564]
[1765784725589,0.002,3126.7,3126.6,9.86963564]
[1765784725989,0.002,3127.1,3126.6,16.2663605]
[1765784726183,0.002,3127.1,3127.0,4.7127697]
[1765784727321,0.002,3127.1,3127.0,5.29324499]
[1765784727816,0.002,3127.1,3127.0,5.58864499]
[1765784727991,0.002,3127.1,3127.0,5.29324499]
[1765784728188,0.4718,3127.7,3127.1,0.58047529]
[1765784728403,0.4718,3127.7,3127.4,4.4173697]
[1765784728601,0.4797,3127.5,3127.4,4.4173697]
[1765784729233,0.4718,3127.7,3127.4,4.4173697]
[1765784729736,0.1855,3127.9,3127.4,4.4173697]
[1765784729932,0.6519,3127.9,3127.8,4.4173697]
[1765784730327,1.1398,3127.9,3127.8,4.4173697]
[1765784733133,0.4899,3127.9,3127.8,4.4173697]
[1765784733641,0.9563,3127.9,3127.8,4.4173697]
[1765784736338,1.1542,3127.9,3127.8,4.4173697]
[1765784736845,1.1542,3127.9,3127.5,4.4173697]
[1765784737140,0.4879,3127.6,3127.5,4.4173697]
[1765784737509,0.4879,3127.6,3127.5,4.41751561]
[1765784738240,0.9543,3127.6,3127.5,4.41751561]
[1765784740944,0.9543,3127.6,3127.5,7.61495765]
[1765784741142,0.9543,3127.6,3127.5,8.48500094]
[1765784742743,0.4879,3127.6,3127.5,8.48500094]
[1765784742929,0.4664,3127.8,3127.5,13.19791655]
[1765784743128,0.4664,3127.8,3127.7,4.41751561]
[1765784743630,0.9543,3127.8,3127.7,4.41751561]
[1765784744447,0.4879,3127.8,3127.7,4.41751561]
[1765784745246,0.4879,3127.8,3127.7,7.61475319]
[1765784746248,0.9543,3127.8,3127.7,4.41751561]
[1765784747631,1.38961316,3127.8,3127.4,4.41751561]
[1765784747944,0.4879,3127.5,3127.4,4.9979909]
[1765784748348,0.9543,3127.5,3127.4,4.9979909]
[1765784749046,0.9543,3127.5,3127.4,4.41751561]
[1765784750917,4.15178902,3127.5,3127.0,0.001]
[1765784751121,0.4879,3127.1,3127.0,0.001]
[1765784751933,0.9543,3127.1,3127.0,0.001]
[1765784752256,0.002,3128.0,3127.0,4.71391561]
[1765784752455,0.1999,3127.9,3127.8,4.41751561]
[1765784752955,1.1542,3127.9,3127.8,4.41751561]
[1765784753355,0.4899,3127.9,3127.8,4.41751561]
[1765784757153,0.4899,3127.9,3127.8,4.71291561]
[1765784757154,0.002,3127.9,3127.8,4.71291561]
[1765784757461,0.002,3127.9,3127.8,5.38465115]
[1765784757961,0.4921,3127.9,3127.8,5.08925115]
[1765784758363,0.9587,3127.9,3127.8,5.08925115]
[1765784758564,1.1427,3127.9,3127.8,4.41751561]
[1765784761761,1.1427,3127.9,3127.4,3.19750652]
[1765784762066,0.4666,3127.8,3127.7,4.41751561]
[1765784762451,0.9567,3127.8,3127.7,4.41751561]
[1765784763035,0.9567,3127.8,3127.5,4.41751561]
[1765784763256,0.9567,3127.8,3127.6,0.76150221]
[1765784763737,0.4901,3127.7,3127.6,0.76150221]
[1765784764137,0.9567,3127.7,3127.6,0.76150221]
[1765784764339,0.9567,3127.7,3127.6,4.41751561]
[1765784764640,0.4901,3127.7,3127.6,4.41751561]
[1765784766068,0.4901,3127.7,3127.4,3.77801957]
[1765784766243,0.4901,3127.7,3127.6,4.41751561]
[1765784766541,0.9567,3127.7,3127.6,4.41751561]
[1765784768769,0.4901,3127.7,3127.6,4.41751561]
[1765784772577,0.002,3127.8,3127.6,8.72976765]
[1765784772744,0.002,3127.8,3127.7,0.5908]
[1765784773065,0.002,3127.8,3127.7,0.2954]
[1765784774853,0.002,3127.8,3127.7,3.49263758]
[1765784775250,0.002,3127.8,3127.7,4.07311287]
[1765784775575,0.002,3127.8,3127.7,5.76562285]
[1765784777172,1.1427,3127.8,3127.7,4.9979909]
[1765784777969,0.002,3127.8,3127.7,8.19522848]
[1765784778278,0.002,3127.8,3127.7,8.49062848]
[1765784780948,0.002,3127.8,3127.7,8.78602848]
[1765784782182,0.002,3127.8,3127.7,8.49062848]
[1765784783666,0.002,3127.8,3127.7,10.13072445]
[1765784786761,0.002,3127.8,3127.7,5.41780884]
[1765784786762,0.9587,3127.8,3127.7,5.41780884]
[1765784786957,0.9587,3127.8,3127.7,3.77771287]
[1765784787373,0.4921,3127.8,3127.7,3.77771287]
[1765784790589,0.002,3127.8,3127.7,3.77771287]
[1765784790891,0.002,3127.8,3127.7,4.07311287]
[1765784794766,0.002,3127.8,3127.7,4.36851287]
[1765784795389,0.002,3127.8,3127.7,4.07311287]
[1765784797394,0.002,3127.8,3127.7,8.48992743]
[1765784803773,0.002,3127.8,3127.7,9.98360173]
[1765784804473,0.002,3127.8,3127.7,9.68820173]
[1765784805206,0.002,3127.8,3127.7,5.27138717]
[1765784808609,0.002,3127.8,3127.7,5.56678717]
[1765784808805,0.002,3127.8,3127.7,5.27138717]
[1765784819210,0.98098098,3127.8,3127.4,0.12801618]
[1765784819410,0.98098098,3127.8,3127.0,0.001]
[1765784819411,0.51008098,3127.5,3127.0,0.001]
[1765784819619,0.4973,3127.1,3127.0,0.001]
[1765784820124,0.9662,3127.1,3127.0,0.001]
[1765784831530,0.9682,3127.1,3127.0,0.001]
[1765784832212,4.16605104,3127.1,3127.0,0.001]
[1765784832399,0.9682,3127.1,3127.0,0.001]
[1765784834134,0.4993,3127.1,3127.0,0.001]
[1765784834504,0.9682,3127.1,3127.0,0.001]
[1765784835136,4.16605104,3127.1,3127.0,0.001]
[1765784835334,4.58391718,3127.1,3127.0,0.001]
[1765784836912,5.08891718,3127.1,3127.0,0.001]
[1765784857448,0.507,3127.1,3127.0,0.2964]
[1765784858347,0.002,3127.1,3127.0,0.2964]
[1765784859470,3.19985104,3127.1,3127.0,0.001]
[1765784859623,3.69425104,3127.1,3127.0,0.001]
[1765784859920,4.18765104,3127.1,3127.0,0.001]
[1765784862124,0.9898,3127.1,3127.0,0.001]
[1765784862658,0.4964,3127.1,3127.0,0.001]
[1765784862870,0.002,3127.1,3127.0,0.2964]
[1765784870064,0.4964,3127.1,3127.0,0.001]
[1765784871167,0.9898,3127.1,3127.0,0.001]
[1765784872039,4.18765104,3127.1,3127.0,0.001]
[1765784873448,0.4964,3127.1,3127.0,0.001]
[1765784873639,0.002,3127.1,3127.0,4.71710204]
[1765784875672,0.01478098,3127.1,3127.0,5.01250204]
[1765784876041,0.01478098,3127.1,3127.0,4.71710204]
[1765784878372,0.48538098,3127.1,3127.0,4.42170204]
[1765784879281,0.96248098,3127.1,3127.0,4.42170204]
[1765784879444,0.96248098,3127.1,3127.0,0.001]
[1765784879641,4.16033202,3127.1,3127.0,0.001]
[1765784880268,3.68323202,3127.1,3127.0,0.001]
[1765784880572,4.16033202,3127.1,3127.0,0.001]
[1765784881668,0.48538098,3127.1,3127.0,0.001]
[1765784881853,0.01478098,3127.1,3127.0,0.2964]
[1765784882055,0.01478098,3127.1,3127.0,4.71710204]
[1765784882844,0.002,3127.1,3127.0,5.01250204]
[1765784883574,0.002,3127.1,3127.0,4.71710204]
[1765784884675,4.14755104,3127.1,3127.0,0.001]
[1765784889275,4.88335029,3127.1,3127.0,0.001]
[1765784889473,1.20839925,3127.1,3127.0,0.001]
[1765784889647,0.4726,3127.1,3127.0,0.001]
[1765784890047,0.002,3127.1,3127.0,0.001]
[1765784890780,0.002,3127.1,3127.0,0.2964]
[1765784890969,0.002,3127.8,3127.3,10.8159951]
[1765784891168,0.002,3127.8,3127.7,4.83980204]
[1765784891346,0.002,3127.8,3127.7,0.4191]
[1765784891553,0.9497,3127.8,3127.4,1.52366971]
[1765784891868,0.4706,3127.5,3127.1,4.54640204]
[1765784892375,0.01278098,3127.2,3127.1,4.42070204]
[1765784892781,0.01278098,3127.2,3127.1,4.71410204]
[1765784894679,0.96048098,3127.2,3127.0,0.001]
[1765784894976,0.4706,3127.1,3127.0,0.001]
[1765784895160,0.48988098,3127.2,3127.0,0.001]
[1765784895562,0.4706,3127.1,3127.0,0.001]
[1765784896084,0.9477,3127.1,3127.0,0.001]
[1765784896864,0.4706,3127.1,3127.0,0.001]
[1765784897578,0.9477,3127.1,3127.0,0.001]
[1765784897772,0.4706,3127.1,3127.0,0.001]
[1765784898349,0.9477,3127.1,3127.0,0.001]
[1765784898998,0.9497,3127.1,3127.0,0.001]
[1765784900859,4.14755104,3127.1,3127.0,0.001]
[1765784901182,0.9497,3127.1,3127.0,0.001]
[1765784902785,4.61407697,3127.1,3127.0,0.001]
[1765784903496,5.01958097,3127.1,3127.0,0.001]
[1765784903784,5.11907697,3127.1,3127.0,0.001]
[1765784905291,1.41622593,3127.1,3127.0,0.001]
[1765784905454,1.92122593,3127.1,3127.0,0.001]
[1765784905788,1.4547,3127.1,3127.0,0.001]
[1765784906005,4.65255104,3127.1,3127.0,0.001]
[1765784910489,4.68462611,3127.1,3127.0,0.001]
[1765784910675,4.65255104,3127.1,3127.0,0.001]
[1765784916310,4.68462611,3127.1,3127.0,0.001]
[1765784916484,4.65255104,3127.1,3127.0,0.001]
[1765784916683,6.07155809,3127.1,3127.0,0.001]
[1765784917108,6.10363316,3127.1,3127.0,0.001]
[1765784917314,6.07155809,3127.1,3127.0,0.001]
[1765784920094,5.08945809,3127.1,3127.0,0.001]
[1765784920298,5.12385809,3127.1,3127.0,0.001]
[1765784920604,5.60825809,3127.1,3127.0,0.001]
[1765784920799,6.10805809,3127.1,3127.0,0.001]
[1765784925823,5.12385809,3127.1,3127.0,0.2944]
[1765784926122,3.70485104,3127.1,3127.0,0.2944]
[1765784931826,3.70485104,3127.1,3126.6,0.001]
[1765784931827,0.405504,3127.0,3126.6,0.001]
[1765784931995,0.6833,3126.7,3126.6,0.001]
[1765784932320,2.19446672,3126.7,3126.6,0.001]
[1765784932526,2.093604,3126.7,3126.6,0.001]
[1765784933325,2.12567907,3126.7,3126.6,0.001]
[1765784933821,4.78686414,3126.7,3126.6,0.001]
[1765784934023,4.38656014,3126.7,3126.6,0.001]
[1765784934420,3.68266014,3126.7,3126.6,0.2944]
[1765784934605,0.01278098,3126.9,3126.6,0.2944]
[1765784934807,3.21087225,3126.9,3126.8,0.2934]
[1765784935007,3.71587225,3126.9,3126.8,0.2934]
[1765784935322,0.51778098,3126.9,3126.8,0.2934]
[1765784935895,3.71583656,3126.9,3126.8,0.2934]
[1765784936101,3.71583656,3126.9,3126.8,0.2944]
[1765784936801,4.20023656,3126.9,3126.8,0.001]
[1765784937422,3.71583656,3126.9,3126.8,0.2944]
[1765784939929,4.16853656,3126.9,3126.8,0.001]
[1765784940928,3.71583656,3126.9,3126.8,0.2944]
[1765784941300,0.51778098,3126.9,3126.8,0.5878]
[1765784941501,0.002,3127.1,3126.8,0.5878]
[1765784941701,0.002,3127.1,3127.0,0.2934]
[1765784942129,0.002,3127.1,3127.0,0.5868]
[1765784943327,0.002,3127.1,3127.0,0.2934]
[1765784943827,0.002,3127.1,3127.0,0.5868]
[1765784944424,0.002,3127.1,3127.0,0.5878]
[1765784944938,0.002,3127.1,3127.0,1.01659431]
[1765784945321,0.002,3127.1,3127.0,0.5878]
[1765784951647,0.002,3127.1,3127.0,0.2944]
[1765784953010,0.4547,3127.1,3127.0,0.001]
[1765784953216,0.9364,3127.1,3127.0,0.001]
[1765784953832,0.4547,3127.1,3127.0,0.001]
[1765784954032,0.87172434,3127.1,3127.0,0.001]
[1765784955019,4.55127538,3127.1,3127.0,0.001]
[1765784956447,1.35342434,3127.1,3127.0,0.001]
[1765784957622,0.87172434,3127.1,3127.0,0.001]
[1765784957837,0.4547,3127.1,3127.0,0.001]
[1765784958851,0.002,3127.1,3127.0,0.001]
[1765784959357,0.002,3127.1,3127.0,0.2944]
[1765784959544,0.002,3127.1,3127.0,0.001]
[1765784959748,0.002,3127.1,3127.0,0.2944]
[1765784960060,0.002,3127.1,3127.0,0.5878]
[1765784960355,0.002,3127.1,3127.0,0.2944]
[1765784962560,0.9364,3127.1,3127.0,0.001]
[1765784962722,1.23967402,3127.1,3127.0,0.001]
[1765784962928,0.002,3127.1,3127.0,0.2944]
[1765784963226,3.19985104,3127.1,3127.0,0.2944]
[1765784964758,0.002,3127.1,3127.0,0.2944]
[1765784970669,0.483,3127.1,3127.0,0.001]
[1765784971350,0.002,3127.1,3127.0,0.001]
[1765784971659,0.002,3127.1,3127.0,0.2944]
[1765784973162,1.2925547,3127.1,3127.0,0.001]
[1765784973331,0.8042547,3127.1,3127.0,0.001]
[1765784974532,1.2925547,3127.1,3127.0,0.001]
[1765784975063,4.49040574,3127.1,3127.0,0.001]
[1765784977343,4.52248081,3127.1,3127.0,0.001]
[1765784978272,4.49040574,3127.1,3127.0,0.001]
[1765784978950,4.52248081,3127.1,3127.0,0.001]
[1765784979369,4.49040574,3127.1,3127.0,0.001]
[1765784979950,4.52248081,3127.1,3127.0,0.001]
[1765784981679,5.1029561,3127.1,3127.0,0.001]
[1765784982373,5.5084601,3127.1,3127.0,0.001]
[1765784982940,17.2245191,3127.1,3127.0,0.001]
[1765784983137,8.51263403,3127.1,3127.0,0.001]
[1765784983947,20.74500503,3127.1,3127.0,0.001]
[1765784984150,21.01137403,3127.1,3127.0,0.001]
[1765784984860,21.13948205,3127.1,3127.0,0.001]
[1765784985065,41.93149305,3127.1,3127.0,0.001]
[1765784985377,37.09308205,3127.1,3127.0,0.001]
[1765784985983,41.93149305,3127.1,3127.0,0.001]
[1765784987193,46.35422606,3127.1,3127.0,0.001]
[1765784987413,41.93149305,3127.1,3127.0,0.001]
[1765784991191,11.93149305,3127.1,3127.0,0.001]
[1765784991460,41.93149305,3127.1,3127.0,0.001]
[1765784991795,42.43649305,3127.1,3127.0,0.001]
[1765784994159,16.85922606,3127.1,3127.0,0.001]
[1765784994384,46.85922606,3127.1,3127.0,0.001]
[1765784994583,0.98597929,3127.0,3126.8,0.001]
[1765784994854,39.82747148,3126.9,3126.8,0.001]
[1765784995068,39.79539641,3126.9,3126.8,0.001]
[1765784995395,49.44858627,3126.9,3126.8,0.001]
[1765784997170,0.98597929,3126.8,3126.6,0.001]
[1765784997385,39.0275532,3126.7,3126.6,0.001]
[1765784997586,42.13596583,3126.7,3126.6,0.001]
[1765784997794,42.2641075,3126.7,3126.6,0.001]
[1765785000397,30.405504,3126.4,3125.7,0.001]
[1765785000596,0.59325627,3126.4,3126.0,0.2934]
[1765785000891,5.92649328,3126.4,3126.3,0.2944]
[1765785001075,5.52098928,3126.4,3126.3,0.2944]
[1765785001276,5.55306435,3126.4,3126.3,0.2944]
[1765785001689,9.12506032,3126.4,3126.3,0.2944]
[1765785003089,3.21134802,3126.4,3126.3,0.5878]
[1765785003272,3.71634802,3126.4,3126.3,0.5878]
[1765785003586,3.71634802,3126.4,3126.3,0.2944]
[1765785004702,4.70232731,3126.4,3126.3,0.001]
[1765785004895,4.70232731,3126.4,3126.3,0.2944]
[1765785005081,4.73440238,3126.4,3126.3,0.2944]
[1765785006511,4.70232731,3126.4,3126.3,0.2944]
[1765785008288,11.02832731,3126.4,3126.3,0.2944]
[1765785009313,12.96886883,3126.4,3126.3,0.2944]
[1765785014223,24.53220283,3126.4,3126.3,0.2944]
[1765785014595,18.89034583,3126.4,3126.3,0.2944]
[1765785015220,19.34154583,3126.4,3126.3,0.001]
[1765785015519,18.89034583,3126.4,3126.3,0.001]
[1765785015724,18.89034583,3126.4,3126.3,0.2944]
[1765785016136,12.96886883,3126.4,3126.3,0.2944]
[1765785018530,3.71634802,3126.4,3126.3,0.5878]
[1765785019826,3.71634802,3126.4,3126.3,0.001]
[1765785020129,3.71634802,3126.4,3126.3,0.2944]
[1765785020498,3.71634802,3126.4,3126.3,0.5878]
[1765785022394,3.71634802,3126.4,3126.3,0.001]
[1765785022796,3.71634802,3126.4,3126.3,0.2944]
[1765785024215,4.8503018,3126.4,3126.3,0.2944]
[1765785024816,4.8503018,3126.4,3126.3,0.5878]
[1765785025035,3.71634802,3126.4,3126.3,0.5878]
[1765785026343,3.71634802,3126.4,3126.3,0.2944]
[1765785026518,3.71634802,3126.4,3126.3,0.5878]
[1765785028768,10.04234802,3126.4,3126.3,0.5878]
[1765785028959,0.002,3126.5,3126.3,8.20920236]
[1765785029114,0.01278098,3127.3,3126.4,1.98819553]
[1765785029320,0.01278098,3127.3,3127.0,0.2914]
[1765785029626,3.19988659,3127.1,3127.0,0.2914]
[1765785029827,3.19988659,3127.1,3127.0,0.5828]
[1765785030748,0.002,3127.1,3127.0,0.5828]
[1765785030945,0.01478098,3127.1,3127.0,0.5828]
[1765785037373,0.002,3127.1,3127.0,0.5828]
[1765785037737,0.002,3127.1,3127.0,0.9608863]
[1765785037939,0.002,3127.1,3127.0,0.5828]
[1765785050788,0.4563,3127.1,3126.5,0.001]
[1765785050951,0.01278098,3126.8,3126.5,0.2924]
[1765785051386,0.01278098,3126.8,3126.7,0.2914]
[1765785053095,3.21093884,3126.8,3126.7,0.2914]
[1765785054077,3.66523884,3126.8,3126.5,0.001]
[1765785054281,0.01278098,3126.6,3126.5,0.001]
[1765785054886,0.01278098,3126.6,3126.5,0.2924]
[1765785056468,0.01278098,3126.6,3126.5,0.5838]
[1765785056668,0.51978098,3126.8,3126.5,0.5838]
[1765785056890,0.51978098,3126.8,3126.7,0.2914]
[1765785057270,0.51978098,3126.8,3126.7,0.5828]
[1765785059876,3.71793884,3126.8,3126.7,0.5828]
[1765785060082,3.71793884,3126.8,3126.7,0.2914]
[1765785060283,0.51978098,3126.8,3126.7,0.2914]
[1765785060809,0.002,3126.8,3126.7,0.2914]
[1765785061109,0.002,3126.8,3126.7,0.5828]
[1765785061409,0.002,3126.8,3126.7,4.15927017]
[1765785064608,0.002,3126.8,3126.7,0.96101003]
[1765785065285,0.002,3126.8,3126.7,0.5828]
[1765785068418,0.002,3126.8,3126.7,3.78106014]
[1765785068617,0.002,3126.8,3126.7,0.2914]
[1765785068922,0.002,3126.8,3126.7,3.78106014]
[1765785069088,0.002,3126.8,3126.7,0.5828]
[1765785070512,0.002,3126.8,3126.7,0.96101446]
[1765785071734,0.002,3126.8,3126.7,4.1592746]
[1765785072295,0.002,3126.8,3126.7,0.96101446]
[1765785074217,0.002,3126.8,3126.7,0.2914]
[1765785079022,0.4967,3126.8,3126.5,0.001]
[1765785079321,0.9796,3126.8,3126.5,0.001]
[1765785080029,0.002,3126.8,3126.7,0.2914]
[1765785080425,0.4967,3126.8,3126.5,0.001]
[1765785080723,0.9796,3126.8,3126.5,0.001]
[1765785082328,0.4947,3126.6,3126.5,0.001]
[1765785082723,0.9776,3126.6,3126.5,0.001]
[1765785083929,3.69306243,3126.6,3126.5,0.001]
[1765785084133,5.37157193,3126.6,3126.5,0.001]
[1765785084519,4.86657193,3126.6,3126.5,0.001]
[1765785084701,5.37157193,3126.6,3126.5,0.001]
[1765785085524,0.01278098,3126.7,3126.5,0.2924]
[1765785085723,3.2111083,3126.7,3126.6,0.2914]
[1765785085929,3.2111083,3126.7,3126.5,0.001]
[1765785086126,0.01278098,3126.7,3126.5,0.001]
[1765785086423,0.01278098,3126.7,3126.6,0.2914]
[1765785086726,0.507,3126.8,3126.6,0.2914]
[1765785087428,0.002,3126.8,3126.6,0.2914]
[1765785087725,0.01278098,3126.7,3126.6,0.2914]
[1765785088224,0.95758098,3126.7,3126.5,0.001]
[1765785088426,0.4574,3126.6,3126.5,0.001]
[1765785088630,0.9448,3126.6,3126.5,0.001]
[1765785090724,4.14316243,3126.6,3126.5,0.001]
[1765785091140,0.9448,3126.6,3126.5,0.001]
[1765785092603,4.14316243,3126.6,3126.5,0.001]
[1765785093017,0.9448,3126.6,3126.5,0.001]
[1765785096406,0.002,3126.8,3126.5,0.2924]
[1765785096712,0.4855,3126.6,3126.5,0.001]
[1765785097926,3.68386243,3126.6,3126.5,0.001]
[1765785099517,0.4855,3126.6,3126.5,0.001]
[1765785100066,3.68586243,3126.6,3126.5,0.001]
[1765785102840,0.002,3126.6,3126.5,0.2924]
[1765785107752,0.002,3126.6,3126.5,0.001]
[1765785113356,4.14346243,3126.6,3126.5,0.001]
[1765785113654,3.68586243,3126.6,3126.5,0.001]
[1765785114738,4.14346243,3126.6,3126.5,0.001]
[1765785115455,3.68586243,3126.6,3126.5,0.001]
[1765785116364,0.002,3126.6,3126.5,0.2924]
[1765785117352,0.002,3126.6,3126.5,0.5838]
[1765785117924,0.002,3126.6,3126.5,0.67394318]
[1765785118229,0.002,3126.6,3126.5,0.96534318]
[1765785120451,0.002,3126.6,3126.5,0.67394318]
[1765785120656,0.002,3126.6,3126.5,0.5838]
[1765785127090,0.002,3126.6,3126.5,8.2042552]
[1765785127579,0.002,3126.6,3126.5,8.78473049]
[1765785128135,0.002,3126.6,3126.5,4.36274002]
[1765785142503,0.002,3126.6,3126.5,4.07134002]
[1765785142678,0.002,3126.6,3126.5,5.32101883]
[1765785142882,0.002,3126.6,3126.5,5.44908132]
[1765785144109,0.002,3126.6,3126.5,5.74048132]
[1765785148012,0.002,3126.6,3126.5,5.61241883]
[1765785152488,0.002,3126.6,3126.5,5.32101883]
[1765785153884,0.002,3126.6,3126.5,5.61241883]
[1765785157015,0.002,3126.6,3126.5,5.32101883]
[1765785159908,0.002,3126.6,3126.5,10.27999394]
[1765785160148,0.002,3126.6,3126.5,10.5394093]
[1765785163524,0.002,3126.6,3126.5,6.11741883]
[1765785167324,0.002,3126.6,3126.5,5.82601883]
[1765785167648,0.9688,3126.6,3126.5,0.001]
[1765785169724,4.16716243,3126.6,3126.5,0.001]
[1765785179251,4.67216243,3126.6,3126.5,0.001]
[1765785180044,9.12474759,3126.6,3126.5,0.001]
[1765785180233,10.32644167,3126.6,3126.5,0.001]
[1765785180546,10.45455215,3126.6,3126.5,0.001]
[1765785181431,6.03404206,3126.6,3126.5,0.001]
[1765785182451,5.52904206,3126.6,3126.5,0.001]
[1765785182748,6.03404206,3126.6,3126.5,0.001]
[1765785183119,12.36004206,3126.6,3126.5,0.001]
[1765785187427,11.85504206,3126.6,3126.5,0.001]
[1765785187656,12.23193158,3126.6,3126.5,0.001]
[1765785188439,12.52433158,3126.6,3126.5,0.001]
[1765785188822,12.01933158,3126.6,3126.5,0.001]
[1765785189024,0.002,3126.6,3126.5,0.2924]
[1765785189261,0.002,3126.6,3126.5,0.5838]
[1765785189422,0.002,3126.6,3126.5,3.78226473]
[1765785190358,0.002,3126.6,3126.5,8.20277482]
[1765785190536,0.002,3126.6,3126.5,9.35581582]
[1765785191137,0.002,3126.6,3126.5,5.51578102]
[1765785191955,0.002,3126.6,3126.5,5.22438102]
[1765785192272,0.002,3126.6,3126.5,1.445441]
[1765785192437,0.002,3126.6,3126.5,3.49086473]
[1765785192637,0.002,3126.6,3126.5,0.5838]
[1765785193063,0.002,3126.6,3126.5,0.2924]
[1765785195459,0.4937,3126.6,3126.5,0.001]
[1765785195646,0.002,3126.6,3126.5,3.49086473]
[1765785195849,0.002,3126.6,3126.5,4.45131722]
[1765785197947,0.002,3126.6,3126.5,1.25285249]
[1765785198461,0.002,3126.6,3126.5,0.96145249]
[1765785199534,0.4937,3126.6,3126.5,0.67005249]
[1765785199758,0.4937,3126.6,3126.5,0.001]
[1765785200063,0.002,3126.6,3126.5,0.2924]
[1765785201237,0.4937,3126.6,3126.5,0.001]
[1765785201934,0.9764,3126.6,3126.5,0.001]
[1765785202140,1.4814,3126.6,3126.5,0.001]
[1765785202445,2.27065086,3126.6,3126.5,0.001]
[1765785203150,5.46901329,3126.6,3126.5,0.001]
[1765785203471,5.48179427,3126.6,3126.5,0.001]
[1765785208479,4.97679427,3126.6,3126.5,0.001]
[1765785208778,5.48179427,3126.6,3126.5,0.001]
[1765785210081,0.01478098,3126.6,3126.5,0.2924]